bitfinex/quotes_SOLUSD_20240605
["timestamp","ask_amount","ask_price","bid_price","bid_amount"]
[1717561235610,7.15,172.62,172.61,2.957192]
[1717561236117,7.15,172.62,172.61,0.813692]
[1717561236317,7.15,172.62,172.61,2.957192]
[1717561238697,2.143,172.66,172.62,2.1434]
[1717561238898,7.15,172.63,172.62,2.1434]
[1717561239109,7.15,172.63,172.61,2.957192]
[1717561239298,7.15,172.62,172.61,2.957192]
[1717561243523,2.143,172.66,172.62,2.1433]
[1717561243725,7.15,172.63,172.62,2.1433]
[1717561244400,7.15,172.63,172.61,0.813692]
[1717561244624,7.15,172.62,172.61,2.957192]
[1717561252046,7.15,172.64,172.63,2.1432]
[1717561255019,7.15,172.64,172.61,0.813692]
[1717561255242,7.15,172.62,172.61,2.957192]
[1717561255441,2.143,172.66,172.62,2.1433]
[1717561255736,7.15,172.63,172.62,2.1433]
[1717561256122,2.143,172.66,172.62,2.1433]
[1717561256440,7.15,172.63,172.62,2.1433]
[1717561257706,2.143,172.66,172.62,2.1433]
[1717561257911,7.15,172.63,172.62,2.1433]
[1717561258814,2.143,172.66,172.62,2.1433]
[1717561259025,7.15,172.63,172.62,2.1433]
[1717561260558,20.0,172.67,172.61,7.244292]
[1717561260838,25.0229,172.69,172.65,2.1429]
[1717561261218,7.15,172.66,172.65,2.1429]
[1717561264747,2.1425,172.7,172.65,2.1429]
[1717561264922,22.1425,172.7,172.65,2.1429]
[1717561265122,7.15,172.67,172.65,2.1429]
[1717561265332,2.1422,172.72,172.67,2.1428]
[1717561265647,7.15,172.68,172.67,2.1428]
[1717561265818,7.15,172.69,172.68,2.1426]
[1717561266630,7.15,172.69,172.67,2.1427]
[1717561266939,22.0909,172.73,172.66,4.2858]
[1717561267144,7.15,172.69,172.68,2.1426]
[1717561267319,24.2329,172.73,172.69,2.1424]
[1717561267527,7.15,172.7,172.69,2.1424]
[1717561267715,22.0909,172.73,172.69,2.1424]
[1717561267919,7.15,172.7,172.69,2.1424]
[1717561268340,24.2329,172.73,172.69,2.1424]
[1717561268741,7.15,172.7,172.69,2.1424]
[1717561273740,2.1418,172.75,172.71,2.1422]
[1717561273926,7.15,172.72,172.71,2.1422]
[1717561274422,7.15,172.72,172.7,2.1423]
[1717561274615,2.1418,172.75,172.7,2.1423]
[1717561274616,7.15,172.71,172.7,2.1423]
[1717561277750,6.4246,172.78,172.69,4.285]
[1717561278026,2.1418,172.75,172.71,2.1423]
[1717561278225,7.15,172.72,172.71,2.1423]
[1717561279361,2.1417,172.76,172.72,2.1421]
[1717561279723,7.15,172.73,172.72,2.1421]
[1717561281466,7.15,172.73,172.71,2.1422]
[1717561281631,7.15,172.72,172.71,2.1422]
[1717561282649,7.15,172.72,172.69,2.1425]
[1717561282851,7.15,172.7,172.69,2.1425]
[1717561283070,2.1419,172.74,172.7,2.1424]
[1717561283275,7.15,172.71,172.7,2.1424]
[1717561283568,7.15,172.71,172.66,8.5716]
[1717561283569,7.15,172.71,172.65,380.3]
[1717561283759,2.1421,172.73,172.69,2.1425]
[1717561283945,10.0,172.84,172.69,6.4275]
[1717561283946,22.8707,172.77,172.69,6.4275]
[1717561284134,20.0,172.76,172.68,10.713]
[1717561284332,7.15,172.71,172.67,12.8563]
[1717561284561,7.15,172.7,172.65,421.40987454]
[1717561284862,7.15,172.7,172.69,2.1425]
[1717561285365,7.15,172.7,172.65,380.3]
[1717561285536,7.15,172.68,172.67,2.1427]
[1717561286745,7.15,172.68,172.65,380.3]
[1717561287059,7.15,172.66,172.65,380.3]
[1717561290163,7.15,172.66,172.62,2.1433]
[1717561290369,7.15,172.63,172.62,2.1433]
[1717561293046,7.15,172.63,172.61,0.813692]
[1717561293365,7.15,172.62,172.61,0.813692]
[1717561293660,7.15,172.62,172.61,2.957192]
[1717561296247,7.15,172.62,172.61,0.813692]
[1717561302871,2.1433,172.63,172.61,0.813692]
[1717561303073,7.15,172.62,172.61,0.813692]
[1717561305552,9.2934,172.62,172.61,0.813692]
[1717561315982,7.15,172.62,172.61,0.813692]
[1717561316166,2.1431,172.65,172.61,2.957092]
[1717561316493,7.15,172.63,172.61,2.957092]
[1717561317290,2.1431,172.64,172.61,0.813692]
[1717561317454,7.15,172.63,172.61,0.813692]
[1717561317662,7.15,172.63,172.61,2.957192]
[1717561318066,28.07684428,172.84,172.69,2.1425]
[1717561318067,19.2804,172.76,172.69,2.1425]
[1717561318391,7.15,172.7,172.68,2.1426]
[1717561318695,7.15,172.69,172.68,2.1426]
[1717561320392,7.15,172.69,172.67,2.1427]
[1717561320580,7.15,172.68,172.67,2.1427]
[1717561323094,7.15,172.68,172.66,2.1428]
[1717561323301,7.15,172.67,172.65,2.143]
[1717561323470,7.15,172.66,172.65,2.143]
[1717561324498,7.15,172.66,172.65,2.1429]
[1717561326704,7.15,172.66,172.64,2.1431]
[1717561326867,7.15,172.65,172.62,19.2905]
[1717561327072,7.15,172.64,172.62,19.2905]
[1717561327697,7.15,172.64,172.63,6.4299]
[1717561327904,7.15,172.65,172.64,2.1431]
[1717561328204,7.15,172.66,172.65,2.143]
[1717561329025,7.15,172.66,172.64,2.1431]
[1717561329197,37.1697,172.71,172.64,2.1431]
[1717561329198,7.15,172.65,172.64,2.1431]
[1717561330381,2.1426,172.69,172.65,2.1429]
[1717561330694,2.1426,172.69,172.66,2.1429]
[1717561330897,7.15,172.67,172.66,2.1429]
[1717561333378,7.15,172.67,172.65,2.1429]
[1717561336186,7.15,172.66,172.65,2.1429]
[1717561337884,7.15,172.66,172.64,2.1431]
[1717561338083,7.15,172.66,172.63,4.2865]
[1717561338084,7.15,172.66,172.65,2.143]
[1717561338913,7.15,172.66,172.64,2.1431]
[1717561339484,7.15,172.66,172.65,2.143]
[1717561341011,20.0,172.7,172.64,120.0]
[1717561341219,2.1423,172.71,172.68,2.1426]
[1717561341392,7.15,172.69,172.68,2.1426]
[1717561341795,2.1422,172.72,172.69,2.1425]
[1717561341987,7.15,172.7,172.69,2.1425]
[1717561342384,7.15,172.7,172.68,2.1426]
[1717561342691,7.15,172.69,172.68,2.1426]
[1717561343903,7.15,172.69,172.67,2.1427]
[1717561344104,7.15,172.68,172.67,2.1427]
[1717561345515,7.15,172.71,172.64,126.4295]
[1717561345724,2.1423,172.71,172.67,2.1427]
[1717561346030,2.1423,172.71,172.68,2.1426]
[1717561346195,7.15,172.69,172.68,2.1426]
[1717561347493,20.0,172.72,172.68,2.1426]
[1717561347494,22.1422,172.72,172.68,2.1426]
[1717561347791,7.15,172.69,172.68,2.1426]
[1717561348920,2.1423,172.71,172.68,2.1426]
[1717561349103,7.15,172.69,172.68,2.1426]
[1717561350696,2.1423,172.71,172.68,2.1426]
[1717561351113,7.15,172.69,172.68,2.1426]
[1717561353926,7.15,172.69,172.68,2.1426]
[1717561354709,2.1422,172.72,172.68,2.1426]
[1717561355006,7.15,172.69,172.68,2.1426]
[1717561356628,10.8807,172.76,172.7,2.1423]
[1717561356802,7.15,172.71,172.69,2.1424]
[1717561357127,7.15,172.71,172.7,2.1424]
[1717561357899,7.15,172.71,172.69,2.1425]
[1717561358111,7.15,172.7,172.69,2.1425]
[1717561381635,7.15,172.7,172.68,2.1426]
[1717561381954,7.15,172.69,172.68,2.1426]
[1717561382139,7.15,172.69,172.62,500.3]
[1717561382140,7.15,172.69,172.63,19.2895]
[1717561382449,7.15,172.69,172.66,2.1429]
[1717561382450,23.5547,172.69,172.66,2.1429]
[1717561382747,7.15,172.67,172.65,2.1429]
[1717561382954,7.15,172.66,172.65,2.1429]
[1717561383145,7.15,172.66,172.65,3.66956408]
[1717561385046,7.15,172.66,172.65,2.1429]
[1717561403274,7.15,172.66,172.64,2.1431]
[1717561403460,7.15,172.65,172.64,2.1431]
[1717561409179,2.1427,172.68,172.65,2.143]
[1717561409387,7.15,172.66,172.65,2.143]
[1717561417263,6.1222,172.69,172.68,2.1426]
[1717561417475,27.15,172.69,172.64,10.7153]
[1717561417661,2.1424,172.7,172.66,2.1428]
[1717561417989,7.15,172.67,172.66,2.1428]
[1717561418177,7.15,172.67,172.65,2.143]
[1717561418375,7.15,172.66,172.65,2.143]
[1717561420361,2.1425,172.69,172.65,2.143]
[1717561420580,7.15,172.66,172.65,2.143]
[1717561420783,2.1425,172.69,172.65,2.143]
[1717561421085,7.15,172.66,172.65,2.143]
[1717561424100,7.15,172.66,172.64,2.1431]
[1717561424295,7.15,172.65,172.64,2.1431]
[1717561425294,7.15,172.65,172.64,3.67012421]
[1717561431687,7.15,172.65,172.64,2.1431]
[1717561432002,7.15,172.65,172.64,3.67012702]
[1717561435284,2.1427,172.68,172.65,2.143]
[1717561435481,7.15,172.66,172.65,2.143]
[1717561435696,7.15,172.66,172.65,1.52700919]
[1717561437303,7.15,172.66,172.65,3.67000919]
[1717561437885,7.15,172.66,172.65,1.52700919]
[1717561447408,7.15,172.66,172.65,3.67000919]
[1717561447807,7.15,172.66,172.65,12.36133407]
[1717561448408,7.15,172.66,172.65,10.21833407]
[1717561448590,2.1427,172.68,172.65,10.21833407]
[1717561448791,7.15,172.66,172.64,10.83442488]
[1717561449002,7.15,172.65,172.64,10.83442488]
[1717561449201,7.15,172.65,172.64,12.36154897]
[1717561449393,7.15,172.65,172.64,3.67022409]
[1717561451399,7.15,172.65,172.61,0.813692]
[1717561451603,7.15,172.65,172.62,3.67070685]
[1717561451791,7.15,172.63,172.62,2.1433]
[1717561451991,7.15,172.63,172.62,3.67070954]
[1717561452206,4.2854,172.68,172.63,2.1432]
[1717561452506,7.15,172.64,172.63,2.1432]
[1717561452713,7.15,172.64,172.63,3.67051002]
[1717561452879,7.15,172.64,172.63,2.1432]
[1717561453084,7.15,172.64,172.63,3.67042478]
[1717561453810,7.15,172.64,172.63,2.1432]
[1717561455519,7.15,172.64,172.63,3.67035116]
[1717561456113,7.15,172.64,172.63,2.1432]
[1717561457711,2.1429,172.66,172.63,2.1432]
[1717561457889,7.15,172.64,172.63,2.1432]
[1717561458817,7.15,172.64,172.62,2.1433]
[1717561459001,7.15,172.63,172.62,2.1433]
[1717561460505,7.15,172.63,172.62,3.67058093]
[1717561460902,2.1429,172.66,172.63,2.1432]
[1717561461114,7.15,172.64,172.63,2.1432]
[1717561465622,7.15,172.64,172.62,2.1433]
[1717561465796,7.15,172.63,172.62,2.1433]
[1717561470601,7.15,172.63,172.61,2.957092]
[1717561470808,7.15,172.62,172.61,2.957092]
[1717561474022,7.15,172.62,172.61,0.813692]
[1717561475198,58.239,172.62,172.61,0.813692]
[1717561475627,36.4434,172.62,172.61,0.813692]
[1717561475831,29.2934,172.62,172.61,0.813692]
[1717561479625,2.1433,172.63,172.61,0.813692]
[1717561479832,7.15,172.62,172.61,0.813692]
[1717561480716,9.2934,172.62,172.61,0.813692]
[1717561481829,6.2934,172.62,172.61,0.813692]
[1717561482132,4.15,172.62,172.61,0.813692]
[1717561482324,6.2934,172.62,172.61,0.813692]
[1717561491817,3.2934,172.62,172.61,0.813692]
[1717561494238,1.15,172.62,172.61,0.813692]
[1717561494920,3.2934,172.62,172.61,0.813692]
[1717561499151,1.15,172.62,172.61,0.813692]
[1717561499538,3.2934,172.62,172.61,0.813692]
[1717561502932,10.4434,172.62,172.61,0.813692]
[1717561503321,9.2934,172.62,172.61,0.813692]
[1717561506655,7.15,172.62,172.61,0.813692]
[1717561506947,9.2934,172.62,172.61,0.813692]
[1717561508450,2.1434,172.62,172.61,0.813692]
[1717561508753,9.2934,172.62,172.61,0.813692]
[1717561515051,7.15,172.62,172.61,0.813692]
[1717561515549,9.2934,172.62,172.61,0.813692]
[1717561518770,16.4434,172.62,172.61,0.813692]
[1717561519067,9.2934,172.62,172.61,0.813692]
[1717561519560,29.2934,172.62,172.61,0.813692]
[1717561520454,36.4434,172.62,172.61,0.813692]
[1717561528059,29.2934,172.62,172.61,0.813692]
[1717561532447,36.4434,172.62,172.61,0.813692]
[1717561535074,40.7302,172.62,172.61,0.813692]
[1717561536377,36.4434,172.62,172.61,0.813692]
[1717561538274,29.2934,172.62,172.61,0.813692]
[1717561540288,22.1434,172.62,172.61,0.813692]
[1717561540584,29.2934,172.62,172.61,0.813692]
[1717561540959,33.5802,172.62,172.61,0.813692]
[1717561542878,29.2934,172.62,172.61,0.813692]
[1717561544295,22.1434,172.62,172.61,0.813692]
[1717561544597,29.2934,172.62,172.61,0.813692]
[1717561548000,28.7934,172.62,172.61,0.813692]
[1717561553177,33.0802,172.62,172.61,0.813692]
[1717561553371,40.2302,172.62,172.61,0.813692]
[1717561554502,33.0802,172.62,172.61,0.813692]
[1717561556198,40.2302,172.62,172.61,0.813692]
[1717561557108,25.9302,172.62,172.61,0.813692]
[1717561557277,40.2302,172.62,172.61,0.813692]
[1717561558304,38.5868,172.62,172.61,0.813692]
[1717561558481,40.7302,172.62,172.61,0.813692]
[1717561562111,75.5166,172.62,172.6,100.0]
[1717561562409,2.1448,172.51,172.46,2.1453]
[1717561562609,2.1448,172.51,172.47,1.52900048]
[1717561562911,2.1449,172.5,172.48,1.52900048]
[1717561563120,9.295,172.49,172.44,2.1456]
[1717561563290,7.15,172.45,172.43,2.959392]
[1717561563618,7.15,172.45,172.43,0.813692]
[1717561563810,7.15,172.44,172.43,0.813692]
[1717561564507,2.1455,172.45,172.43,0.813692]
[1717561564816,7.15,172.44,172.43,0.813692]
[1717561564983,2.1454,172.46,172.43,0.813692]
[1717561565190,2.1455,172.45,172.43,0.813692]
[1717561565487,20.0,172.48,172.45,8.2171]
[1717561565684,7.15,172.49,172.46,8.217]
[1717561565885,7.15,172.5,172.46,8.217]
[1717561566085,2.1448,172.51,172.46,8.217]
[1717561566294,14.978,172.59,172.48,65.14861121]
[1717561566506,7.15,172.53,172.5,2.1448]
[1717561566685,7.15,172.52,172.5,2.1448]
[1717561566890,4.2872,172.61,172.54,2.1443]
[1717561567094,7.15,172.55,172.49,4.29]
[1717561567317,2.1442,172.56,172.49,4.29]
[1717561567318,7.15,172.51,172.49,2.1449]
[1717561567786,7.15,172.51,172.5,2.1449]
[1717561568122,2.1444,172.54,172.5,2.1449]
[1717561568278,7.15,172.51,172.49,2.1449]
[1717561568485,7.15,172.51,172.5,2.1449]
[1717561568899,7.15,172.51,172.48,2.1451]
[1717561569114,7.15,172.49,172.47,2.1452]
[1717561569316,7.15,172.5,172.44,114.246618]
[1717561569488,7.15,172.5,172.47,2.1452]
[1717561569802,2.1447,172.52,172.47,2.1452]
[1717561569803,7.15,172.49,172.47,2.1452]
[1717561570114,7.15,172.49,172.44,10.6504]
[1717561570410,7.15,172.49,172.47,2.1452]
[1717561570793,7.15,172.49,172.46,2.1454]
[1717561570999,7.15,172.47,172.46,2.1454]
[1717561571388,7.15,172.47,172.46,382.4454]
[1717561571714,7.15,172.48,172.46,382.4454]
[1717561575287,2.1449,172.5,172.46,382.4454]
[1717561575488,7.15,172.48,172.46,382.4454]
[1717561580086,2.145,172.49,172.46,382.4454]
[1717561580389,7.15,172.48,172.46,382.4454]
[1717561582307,7.15,172.48,172.47,2.1453]
[1717561582821,22.1448,172.51,172.47,2.1453]
[1717561583027,7.15,172.48,172.47,382.4453]
[1717561584999,7.15,172.48,172.47,380.3]
[1717561587222,7.15,172.49,172.47,380.3]
[1717561587521,9.295,172.49,172.47,380.3]
[1717561587702,7.15,172.49,172.47,380.3]
[1717561588025,9.295,172.49,172.47,380.3]
[1717561588322,7.15,172.49,172.47,380.3]
[1717561588526,7.15,172.49,172.47,382.4452]
[1717561588900,20.0,172.51,172.47,380.3]
[1717561589108,2.1446,172.53,172.48,124.2902]
[1717561589301,2.1446,172.52,172.49,2.1449]
[1717561589506,7.15,172.52,172.49,2.1449]
[1717561589725,9.2946,172.52,172.49,2.1449]
[1717561590214,7.15,172.52,172.49,2.1449]
[1717561591818,9.2946,172.52,172.49,2.1449]
[1717561592131,7.15,172.52,172.48,2.1451]
[1717561592313,7.15,172.5,172.47,380.3]
[1717561592628,9.2949,172.5,172.47,382.4452]
[1717561597140,7.15,172.49,172.47,2.1452]
[1717561597731,7.15,172.48,172.47,2.1452]
[1717561598035,7.15,172.49,172.47,2.1452]
[1717561599429,7.15,172.49,172.48,2.1451]
[1717561600735,20.0,172.56,172.52,2.1446]
[1717561600909,20.0,172.56,172.49,4.2899]
[1717561601112,24.2881,172.57,172.51,2.1447]
[1717561601625,9.2944,172.54,172.5,2.1448]
[1717561601827,9.2944,172.54,172.51,2.1448]
[1717561602139,9.2944,172.54,172.5,2.1448]
[1717561602312,9.2945,172.53,172.49,2.1449]
[1717561602931,9.2946,172.52,172.48,2.1451]
[1717561603107,7.15,172.51,172.48,2.1451]
[1717561603314,7.15,172.5,172.48,2.1451]
[1717561604011,7.15,172.51,172.49,2.145]
[1717561604633,7.15,172.52,172.49,2.145]
[1717561604933,2.1445,172.53,172.47,4.2905]
[1717561605111,7.15,172.52,172.49,2.1449]
[1717561605447,7.15,172.52,172.5,2.1449]
[1717561605928,7.15,172.53,172.5,2.1448]
[1717561606308,7.15,172.52,172.5,2.1448]
[1717561606759,7.15,172.52,172.49,2.1449]
[1717561607043,2.1445,172.53,172.49,2.1449]
[1717561607234,7.15,172.52,172.49,2.1449]
[1717561609132,7.15,172.52,172.5,2.1449]
[1717561609816,7.15,172.52,172.49,2.1449]
[1717561610729,9.2946,172.52,172.49,2.1449]
[1717561614424,7.15,172.51,172.49,2.1449]
[1717561614636,9.2948,172.51,172.48,2.1451]
[1717561615435,7.15,172.51,172.49,2.145]
[1717561615816,7.15,172.51,172.48,2.145]
[1717561616015,7.15,172.5,172.49,2.145]
[1717561617120,7.15,172.5,172.48,2.145]
[1717561617319,7.15,172.51,172.48,2.145]
[1717561617732,7.15,172.49,172.47,2.1452]
[1717561619247,7.15,172.48,172.46,2.1453]
[1717561619419,7.15,172.48,172.43,7.250992]
[1717561619618,9.2951,172.48,172.45,2.1454]
[1717561619818,7.15,172.48,172.45,2.1454]
[1717561620233,9.2951,172.48,172.45,2.1454]
[1717561620536,7.15,172.48,172.45,2.1454]
[1717561620844,9.2951,172.48,172.45,2.1454]
[1717561621418,9.2951,172.48,172.44,2.1455]
[1717561623216,9.2951,172.48,172.43,5.105192]
[1717561623549,2.1453,172.47,172.44,2.1456]
[1717561623919,9.2952,172.48,172.44,2.1456]
[1717561624134,7.15,172.45,172.43,2.959392]
[1717561624327,10.7253,172.49,172.44,2.1455]
[1717561624328,2.1453,172.47,172.44,2.1455]
[1717561624521,7.15,172.45,172.44,2.1455]
[1717561624739,7.15,172.46,172.44,2.1455]
[1717561625637,7.15,172.46,172.43,2.959392]
[1717561626348,9.2955,172.46,172.43,0.813692]
[1717561626527,7.15,172.45,172.43,2.959392]
[1717561630438,7.15,172.45,172.43,0.813692]
[1717561630632,2.1455,172.45,172.43,0.813692]
[1717561630834,9.2955,172.45,172.43,0.813692]
[1717561631028,2.1454,172.46,172.43,0.813692]
[1717561631233,7.15,172.45,172.43,2.959392]
[1717561632254,25.7275,172.49,172.43,2.959392]
[1717561632255,2.1453,172.47,172.43,2.959392]
[1717561632560,9.2954,172.46,172.43,2.959392]
[1717561633828,7.15,172.45,172.43,2.959392]
[1717561634242,7.15,172.45,172.43,0.813692]
[1717561635540,9.2955,172.45,172.43,0.813692]
[1717561636451,4.2906,172.47,172.43,0.813692]
[1717561636452,7.15,172.44,172.43,2.959392]
[1717561636801,4.2906,172.47,172.44,2.1455]
[1717561636802,9.2953,172.47,172.44,2.1455]
[1717561636953,9.2953,172.47,172.43,0.813692]
[1717561636954,7.15,172.47,172.45,2.1455]
[1717561637256,7.15,172.47,172.44,2.1456]
[1717561637438,6.4343,172.52,172.46,2.1453]
[1717561637697,24.2897,172.51,172.46,2.1453]
[1717561637827,2.1446,172.53,172.47,4.2905]
[1717561638034,2.1446,172.53,172.49,2.1449]
[1717561638234,9.2946,172.53,172.5,2.1449]
[1717561638450,7.15,172.52,172.49,2.1449]
[1717561638946,9.2946,172.52,172.49,2.1449]
[1717561639146,2.1446,172.53,172.49,2.1449]
[1717561639350,22.1444,172.54,172.5,2.1448]
[1717561639549,7.15,172.52,172.5,2.1448]
[1717561640570,7.15,172.52,172.49,2.145]
[1717561640758,9.2946,172.52,172.49,2.145]
[1717561640944,9.2946,172.52,172.48,2.1451]
[1717561641147,7.15,172.51,172.48,2.1451]
[1717561642738,9.2948,172.51,172.48,2.1451]
[1717561643362,20.0,172.54,172.46,135.0175]
[1717561643665,7.15,172.51,172.49,2.1449]
[1717561644252,7.15,172.5,172.48,2.1451]
[1717561644452,9.2948,172.51,172.47,2.1452]
[1717561645479,7.15,172.5,172.47,2.1452]
[1717561646676,9.2949,172.5,172.46,2.1453]
[1717561646965,2.1451,172.48,172.44,2.1456]
[1717561647156,7.15,172.47,172.44,2.1456]
[1717561647344,7.15,172.47,172.45,2.1455]
[1717561647547,7.15,172.47,172.44,2.1456]
[1717561647857,7.15,172.47,172.45,2.1455]
[1717561648169,7.15,172.48,172.45,2.1455]
[1717561648348,7.15,172.48,172.46,2.1454]
[1717561648854,7.15,172.48,172.45,2.1454]
[1717561649353,2.145,172.49,172.46,2.1454]
[1717561649553,7.15,172.48,172.46,2.1454]
[1717561649756,7.15,172.47,172.44,2.1456]
[1717561649945,7.15,172.46,172.44,2.1456]
[1717561650542,7.15,172.47,172.44,2.1456]
[1717561653271,20.0,172.5,172.43,0.813692]
[1717561653446,2.1449,172.5,172.46,2.1454]
[1717561653854,2.145,172.49,172.46,2.1454]
[1717561654055,7.15,172.47,172.46,2.1454]
[1717561654270,7.15,172.47,172.45,2.1454]
[1717561655472,4.2904,172.48,172.43,0.813692]
[1717561655686,7.15,172.44,172.43,0.813692]
[1717561660682,2.1455,172.45,172.43,0.813692]
[1717561660870,9.2955,172.45,172.43,0.813692]
[1717561661808,2.1454,172.46,172.43,0.813692]
[1717561662092,7.15,172.45,172.43,0.813692]
[1717561664004,9.2955,172.45,172.43,0.813692]
[1717561664299,7.15,172.45,172.43,0.813692]
[1717561664590,9.2955,172.45,172.43,0.813692]
[1717561664797,7.15,172.45,172.43,0.813692]
[1717561665688,9.2955,172.45,172.43,0.813692]
[1717561667389,7.15,172.45,172.43,0.813692]
[1717561667796,9.2956,172.45,172.43,0.813692]
[1717561667972,7.15,172.45,172.43,0.813692]
[1717561668177,22.2071,172.49,172.43,0.813692]
[1717561668376,7.15,172.46,172.43,0.813692]
[1717561668676,7.15,172.45,172.43,0.813692]
[1717561669397,9.2956,172.45,172.43,0.813692]
[1717561670293,9.2954,172.46,172.43,0.813692]
[1717561670798,9.2954,172.46,172.43,2.959392]
[1717561670980,2.1454,172.46,172.43,0.813692]
[1717561671594,9.2954,172.46,172.43,0.813692]
[1717561672207,2.1454,172.46,172.43,0.813692]
[1717561672399,9.2954,172.46,172.43,0.813692]
[1717561675108,9.2954,172.46,172.43,2.959392]
[1717561677297,7.15,172.44,172.43,0.813692]
[1717561677482,7.15,172.45,172.43,0.813692]
[1717561677869,2.1454,172.46,172.43,0.813692]
[1717561678071,7.15,172.45,172.43,2.959392]
[1717561678900,9.2954,172.46,172.43,2.959392]
[1717561679087,7.15,172.46,172.43,2.959392]
[1717561680601,2.1453,172.47,172.43,2.959392]
[1717561680820,7.15,172.46,172.43,2.959392]
[1717561681107,9.2954,172.46,172.43,2.959392]
[1717561681838,15.0158,172.49,172.43,0.813692]
[1717561682105,9.2953,172.47,172.43,0.813692]
[1717561682625,9.2953,172.47,172.44,2.1456]
[1717561683387,12.8707,172.49,172.44,2.1456]
[1717561683388,2.1452,172.48,172.44,2.1456]
[1717561683584,7.15,172.47,172.44,2.1456]
[1717561683796,2.1452,172.48,172.44,2.1456]
[1717561683983,4.2901,172.49,172.43,0.813692]
[1717561683984,2.145,172.49,172.43,125.105092]
[1717561684171,7.15,172.49,172.47,2.1452]
[1717561684381,2.1448,172.51,172.47,2.1452]
[1717561684582,7.15,172.49,172.47,2.1452]
[1717561685303,2.1447,172.52,172.46,4.2908]
[1717561685476,7.15,172.5,172.45,120.0]
[1717561685687,7.15,172.5,172.47,2.1452]
[1717561686221,7.15,172.5,172.46,2.1453]
[1717561687021,2.1448,172.51,172.46,2.1453]
[1717561687218,7.15,172.49,172.46,2.1453]
[1717561687802,7.15,172.49,172.47,2.1452]
[1717561690015,2.1448,172.51,172.47,2.1452]
[1717561690217,7.15,172.5,172.47,2.1452]
[1717561691582,2.1448,172.51,172.47,2.1452]
[1717561691787,2.1445,172.53,172.49,2.145]
[1717561692013,7.15,172.51,172.49,2.145]
[1717561692193,7.15,172.51,172.48,2.1451]
[1717561693919,2.1446,172.52,172.48,2.1451]
[1717561694118,7.15,172.51,172.48,2.1451]
[1717561694422,7.15,172.5,172.47,2.1452]
[1717561695922,7.15,172.5,172.48,2.1451]
[1717561697099,2.1446,172.53,172.48,2.1451]
[1717561697303,7.15,172.5,172.48,2.1451]
[1717561698115,7.15,172.5,172.47,2.1452]
[1717561698505,7.15,172.5,172.48,2.1451]
[1717561700826,20.0,172.53,172.45,8.69976827]
[1717561701013,7.15,172.48,172.46,2.1453]
[1717561702333,7.15,172.48,172.47,2.1453]
[1717561702533,7.15,172.49,172.47,2.1453]
[1717561704424,7.15,172.49,172.48,2.1451]
[1717561705801,2.1447,172.52,172.48,2.1451]